fUSD/lending_fUSD_20250103
["ID","MTS","AMOUNT","RATE_DAILY","PERIOD"]
[347541266,1735911038328,-500.0,8.979e-05,2]
[347541267,1735911038339,-500.0,8.979e-05,2]
[347541268,1735911038349,-500.0,8.979e-05,2]
[347541269,1735911038358,-500.0,8.979e-05,2]
[347541270,1735911038368,-194.49255799,8.979e-05,2]
[347541271,1735911038377,-500.0,8.979e-05,2]
[347541272,1735911038386,-500.0,8.979e-05,2]
[347541273,1735911038395,-500.0,8.979e-05,2]
[347541274,1735911038405,-500.0,8.979e-05,2]
[347541275,1735911038413,-500.0,8.979e-05,2]
[347541276,1735911038422,-500.0,8.979e-05,2]
[347541277,1735911038432,-500.0,8.979e-05,2]
[347541278,1735911038441,-526.94,8.979e-05,2]
[347541279,1735911038450,-502.04,8.979e-05,2]
[347541280,1735911038459,-500.0,8.979e-05,2]
[347541281,1735911038467,-500.0,8.979e-05,2]
[347541283,1735911038477,-500.0,8.979e-05,2]
[347541284,1735911038486,-500.0,8.979e-05,2]
[347541285,1735911038495,-500.0,8.979e-05,2]
[347541287,1735911038503,-500.0,8.979e-05,2]
[347541289,1735911038512,-500.0,8.979e-05,2]
[347541291,1735911038522,-500.0,8.979e-05,2]
[347541293,1735911038534,-536.85,8.979e-05,2]
[347541295,1735911038543,-500.0,8.979e-05,2]
[347541297,1735911038552,-500.0,8.979e-05,2]
[347541299,1735911038561,-500.0,8.979e-05,2]
[347541301,1735911038572,-549.42,8.979e-05,2]
[347541303,1735911038581,-546.86381563,8.979e-05,2]
[347541305,1735911038593,-151.31746395,8.979e-05,2]
[347541307,1735911038603,-500.0,8.979e-05,2]
[347541309,1735911038612,-500.0,8.979e-05,2]
[347541311,1735911038621,-500.0,8.979e-05,2]
[347541313,1735911038631,-500.0,8.979e-05,2]
[347541315,1735911038640,-500.0,8.979e-05,2]
[347541317,1735911038649,-500.0,8.979e-05,2]
[347541319,1735911038660,-500.0,8.979e-05,2]
[347541321,1735911038669,-500.0,8.979e-05,2]
[347541323,1735911038679,-198.06413225,8.979e-05,2]
[347541325,1735911038689,-500.0,8.979e-05,2]
[347541327,1735911038700,-691.92,8.979e-05,2]
[347541329,1735911038709,-500.0,8.979e-05,2]
[347541331,1735911038719,-500.0,8.979e-05,2]
[347541333,1735911038728,-500.0,8.979e-05,2]
[347541335,1735911038737,-500.0,8.979e-05,2]
[347541337,1735911038746,-525.09,8.979e-05,2]
[347541339,1735911038756,-500.0,8.979e-05,2]
[347541341,1735911038766,-410.46632959,8.979e-05,2]
[347541343,1735911038775,-500.0,8.979e-05,2]
[347541345,1735911038785,-341.49251822,8.979e-05,2]
[347541428,1735911039539,-158.50748178,8.979e-05,2]
[347541430,1735911039549,-297.74597755,8.979e-05,2]
[347541432,1735911039559,-500.0,8.979e-05,2]
[347541434,1735911039568,-500.0,8.979e-05,2]
[347541436,1735911039578,-574.82,8.979e-05,2]
[347541438,1735911039589,-500.0,8.979e-05,2]
[347541440,1735911039598,-500.0,8.979e-05,2]
[347541442,1735911039607,-500.0,8.979e-05,2]
[347541444,1735911039617,-500.0,8.979e-05,2]
[347541446,1735911039626,-500.0,8.979e-05,2]
[347541448,1735911039635,-500.0,8.979e-05,2]
[347541450,1735911039643,-723.95,8.979e-05,2]
[347541452,1735911039652,-500.0,8.979e-05,2]
[347541454,1735911039662,-500.0,8.979e-05,2]
[347541456,1735911039671,-500.0,8.979e-05,2]
[347541458,1735911039680,-500.0,8.979e-05,2]
[347541460,1735911039689,-500.0,8.979e-05,2]
[347541462,1735911039698,-504.47,8.979e-05,2]
[347541464,1735911039707,-500.0,8.979e-05,2]
[347541466,1735911039716,-500.0,8.979e-05,2]
[347541468,1735911039726,-500.0,8.979e-05,2]
[347541470,1735911039734,-500.0,8.979e-05,2]
[347541472,1735911039744,-51.50958624,8.979e-05,2]
[347541474,1735911039756,-448.49041376,8.979e-05,2]
[347541476,1735911039766,-500.0,8.979e-05,2]
[347541478,1735911039775,-500.0,8.979e-05,2]
[347541481,1735911039785,-500.0,8.979e-05,2]
[347541482,1735911039795,-500.0,8.979e-05,2]
[347541485,1735911039805,-500.0,8.979e-05,2]
[347541487,1735911039814,-500.0,8.979e-05,2]
[347541489,1735911039824,-500.0,8.979e-05,2]
[347541490,1735911039834,-500.0,8.979e-05,2]
[347541492,1735911039844,-500.0,8.979e-05,2]
[347541495,1735911039853,-267.83090717,8.979e-05,2]
[347541555,1735911040430,-449.54909283,8.979e-05,2]
[347541557,1735911040439,-500.0,8.979e-05,2]
[347541559,1735911040448,-500.0,8.979e-05,2]
[347541561,1735911040458,-500.0,8.979e-05,2]
[347541563,1735911040467,-500.0,8.979e-05,2]
[347541565,1735911040476,-500.0,8.979e-05,2]
[347541567,1735911040485,-500.0,8.979e-05,2]
[347541569,1735911040495,-685.02,8.979e-05,2]
[347541571,1735911040504,-500.0,8.979e-05,2]
[347541573,1735911040514,-500.0,8.979e-05,2]
[347541575,1735911040523,-561.0,8.979e-05,2]
[347541577,1735911040536,-500.0,8.979e-05,2]
[347541579,1735911040545,-500.0,8.979e-05,2]
[347541581,1735911040554,-500.0,8.979e-05,2]
[347541583,1735911040563,-524.51,8.979e-05,2]
[347541585,1735911040575,-500.0,8.979e-05,2]
[347541587,1735911040587,-500.0,8.979e-05,2]
[347541589,1735911040596,-500.0,8.979e-05,2]
[347541591,1735911040607,-500.0,8.979e-05,2]
[347541593,1735911040616,-500.0,8.979e-05,2]
[347541595,1735911040625,-500.0,8.979e-05,2]
[347541597,1735911040635,-500.0,8.979e-05,2]
[347541599,1735911040644,-500.0,8.979e-05,2]
[347541601,1735911040653,-646.45,8.979e-05,2]
[347541602,1735911040662,-606.92,8.979e-05,2]
[347541604,1735911040671,-500.0,8.979e-05,2]
[347541606,1735911040680,-605.21628665,8.979e-05,2]
[347541608,1735911040689,-500.0,8.979e-05,2]
[347541610,1735911040699,-500.0,8.979e-05,2]
[347541612,1735911040709,-500.0,8.979e-05,2]
[347541614,1735911040719,-500.0,8.979e-05,2]
[347541616,1735911040728,-500.37059342,8.979e-05,2]
[347541618,1735911040737,-500.0,8.979e-05,2]
[347541620,1735911040747,-767.86,8.979e-05,2]
[347541622,1735911040757,-500.0,8.979e-05,2]
[347541624,1735911040766,-500.0,8.979e-05,2]
[347541626,1735911040775,-500.0,8.979e-05,2]
[347541628,1735911040786,-500.0,8.979e-05,2]
[347541630,1735911040797,-603.86,8.979e-05,2]
[347541632,1735911040806,-500.13202654,8.979e-05,2]
[347541634,1735911040815,-768.22,8.979e-05,2]
[347541636,1735911040825,-406.91935413,8.979e-05,2]
[347541640,1735911040855,-93.08064587,8.979e-05,2]
[347541642,1735911040865,-500.0,8.979e-05,2]
[347541644,1735911040874,-354.64881413,8.979e-05,2]
[347541648,1735911040907,-145.35118587,8.979e-05,2]
[347541650,1735911040916,-184.73614737,8.979e-05,2]
[347541831,1735911042610,-779.7,8.878e-05,2]
[347541833,1735911042619,-500.0,8.978e-05,2]
[347541835,1735911042630,-315.26385263,8.979e-05,2]
[347541837,1735911042639,-500.0,8.979e-05,2]
[347541839,1735911042648,-819.89,8.979e-05,2]
[347541841,1735911042657,-500.0,8.979e-05,2]
[347541843,1735911042666,-500.0,8.979e-05,2]
[347541845,1735911042676,-500.0,8.979e-05,2]
[347541847,1735911042685,-521.9,8.979e-05,2]
[347541849,1735911042694,-500.0,8.979e-05,2]
[347541851,1735911042703,-500.0,8.979e-05,2]
[347541853,1735911042712,-500.0,8.979e-05,2]
[347541855,1735911042722,-500.0,8.979e-05,2]
[347541857,1735911042731,-500.0,8.979e-05,2]
[347541859,1735911042741,-168.81051035,8.979e-05,2]
[347541883,1735911042969,-331.18948965,8.979e-05,2]
[347541885,1735911042979,-386.27391311,8.979e-05,2]
[347541889,1735911042999,-113.72608689,8.979e-05,2]
[347541891,1735911043010,-168.74442971,8.979e-05,2]
[347542012,1735911045616,-396.00175286,8.878e-05,2]
[347542013,1735911045626,-13.70038447,8.979e-05,2]
[347542014,1735911045635,-500.0,8.979e-05,2]
[347542015,1735911045644,-500.0,8.979e-05,2]
[347542016,1735911045653,-500.0,8.979e-05,2]
[347542017,1735911045662,-500.0,8.979e-05,2]
[347542018,1735911045671,-500.0,8.979e-05,2]
[347542019,1735911045680,-500.0,8.979e-05,2]
[347542020,1735911045690,-500.0,8.979e-05,2]
[347542021,1735911045700,-800.01,8.979e-05,2]
[347542022,1735911045710,-311.51391267,8.979e-05,2]
[347542023,1735911045803,-188.48608733,8.979e-05,2]
[347542024,1735911045812,-500.0,8.979e-05,2]
[347542025,1735911045822,-500.0,8.979e-05,2]
[347542026,1735911045831,-587.38,8.979e-05,2]
[347542027,1735911045841,-500.0,8.979e-05,2]
[347542028,1735911045850,-500.0,8.979e-05,2]
[347542029,1735911045859,-311.2074661,8.979e-05,2]
[347542039,1735911303993,513.0,8.979e-05,30]
[347542040,1735911304600,513.0,9.664e-05,30]
[347542041,1735911305025,513.0,0.0001035,30]
[347542042,1735911305299,513.0,0.00011035,30]
[347542043,1735911306152,513.0,0.0001172,30]
[347542044,1735911306529,513.0,0.00012406,30]
[347542045,1735911306853,513.0,0.00013091,30]
[347542046,1735911359933,-1000.0,8.219e-05,2]
[347542047,1735911359958,-1711.5,8.219e-05,2]
[347542048,1735911359982,-250.0,8.219e-05,2]
[347542049,1735911360006,-41890.0,8.542e-05,2]
[347542050,1735911360032,-204.8118,8.782e-05,2]
[347542051,1735911360057,-1155.22,8.878e-05,2]
[347542052,1735911360081,-500.0,8.878e-05,2]
[347542053,1735911360106,-500.0,8.878e-05,2]
[347542054,1735911360131,-500.0,8.878e-05,2]
[347542055,1735911360155,-500.0,8.878e-05,2]
[347542056,1735911360179,-608.97,8.878e-05,2]
[347542057,1735911360204,-500.0,8.878e-05,2]
[347542058,1735911360229,-500.0,8.878e-05,2]
[347542059,1735911360254,-500.0,8.878e-05,2]
[347542060,1735911360278,-830.34,8.878e-05,2]
[347542061,1735911360302,-500.0,8.878e-05,2]
[347542062,1735911360325,-500.0,8.878e-05,2]
[347542063,1735911360349,-865.65,8.878e-05,2]
[347542064,1735911360374,-500.0,8.878e-05,2]
[347542065,1735911360398,-643.51,8.878e-05,2]
[347542066,1735911360421,-500.0,8.878e-05,2]
[347542067,1735911360445,-500.0,8.878e-05,2]
[347542068,1735911360469,-674.23,8.878e-05,2]
[347542069,1735911360492,-500.0,8.878e-05,2]
[347542070,1735911360515,-516.84,8.878e-05,2]
[347542071,1735911360538,-500.0,8.878e-05,2]
[347542072,1735911360560,-500.0,8.878e-05,2]
[347542073,1735911360583,-500.0,8.878e-05,2]
[347542074,1735911360607,-500.0,8.878e-05,2]
[347542075,1735911360636,-500.0,8.878e-05,2]
[347542076,1735911360658,-1789.19,8.878e-05,2]
[347542077,1735911360680,-500.0,8.878e-05,2]
[347542078,1735911360704,-500.0,8.878e-05,2]
[347542079,1735911360726,-500.0,8.878e-05,2]
[347542080,1735911360748,-500.0,8.878e-05,2]
[347542081,1735911360771,-500.0,8.878e-05,2]
[347542082,1735911360794,-500.0,8.878e-05,2]
[347542083,1735911360817,-500.0,8.878e-05,2]
[347542084,1735911360839,-500.0,8.878e-05,2]
[347542085,1735911360862,-500.0,8.878e-05,2]
[347542086,1735911360885,-500.0,8.878e-05,2]
[347542087,1735911360908,-500.0,8.878e-05,2]
[347542088,1735911360931,-500.0,8.878e-05,2]
[347542089,1735911360954,-261.69255783,8.878e-05,2]
[347542090,1735911360978,-500.0,8.878e-05,2]
[347542091,1735911361001,-500.0,8.878e-05,2]
[347542092,1735911361024,-601.75,8.878e-05,2]
[347542093,1735911361047,-500.0,8.878e-05,2]
[347542094,1735911361069,-500.0,8.878e-05,2]
[347542095,1735911361091,-500.0,8.878e-05,2]
[347542096,1735911361117,-500.0,8.878e-05,2]
[347542097,1735911361140,-500.0,8.878e-05,2]
[347542098,1735911361163,-500.0,8.878e-05,2]
[347542099,1735911361186,-500.0,8.878e-05,2]
[347542100,1735911361209,-500.0,8.878e-05,2]
[347542101,1735911361232,-500.0,8.878e-05,2]
[347542102,1735911361257,-500.0,8.878e-05,2]
[347542103,1735911361280,-500.0,8.878e-05,2]
[347542104,1735911361304,-500.0,8.878e-05,2]
[347542105,1735911361328,-500.0,8.878e-05,2]
[347542106,1735911361351,-500.0,8.878e-05,2]
[347542107,1735911361378,-500.0,8.878e-05,2]
[347542108,1735911361401,-876.07,8.878e-05,2]
[347542109,1735911361425,-1159.63,8.878e-05,2]
[347542110,1735911361450,-1956.13,8.878e-05,2]
[347542111,1735911361474,-500.0,8.878e-05,2]
[347542112,1735911361497,-500.0,8.878e-05,2]
[347542113,1735911361520,-500.0,8.878e-05,2]
[347542114,1735911361544,-500.0,8.878e-05,2]
[347542115,1735911361567,-800.07,8.878e-05,2]
[347542116,1735911361590,-500.0,8.878e-05,2]
[347542117,1735911361615,-500.0,8.878e-05,2]
[347542118,1735911361642,-500.0,8.878e-05,2]
[347542119,1735911361667,-552.51,8.878e-05,2]
[347542120,1735911361690,-500.0,8.878e-05,2]
[347542121,1735911361717,-500.0,8.878e-05,2]
[347542122,1735911361740,-500.0,8.878e-05,2]
[347542123,1735911361765,-3568.54,8.878e-05,2]
[347542124,1735911361788,-434.59272903,8.878e-05,2]
[347542125,1735911361811,-500.0,8.878e-05,2]
[347542126,1735911361834,-500.0,8.878e-05,2]
[347542127,1735911361857,-500.0,8.878e-05,2]
[347542128,1735911361884,-500.0,8.878e-05,2]
[347542129,1735911361907,-500.0,8.878e-05,2]
[347542130,1735911361932,-500.0,8.878e-05,2]
[347542131,1735911361956,-1539.17,8.878e-05,2]
[347542132,1735911361979,-500.0,8.878e-05,2]
[347542133,1735911362002,-500.0,8.878e-05,2]
[347542134,1735911362591,-500.0,8.878e-05,2]
[347542135,1735911362629,-500.0,8.878e-05,2]
[347542136,1735911362650,-500.0,8.878e-05,2]
[347542137,1735911362672,-500.0,8.878e-05,2]
[347542138,1735911362694,-2710.99,8.878e-05,2]
[347542139,1735911362716,-500.0,8.878e-05,2]
[347542140,1735911362736,-500.0,8.878e-05,2]
[347542141,1735911362757,-1512.44,8.878e-05,2]
[347542142,1735911362778,-500.0,8.878e-05,2]
[347542143,1735911362798,-500.0,8.878e-05,2]
[347542144,1735911362819,-500.0,8.878e-05,2]
[347542145,1735911362843,-500.0,8.878e-05,2]
[347542146,1735911362863,-500.0,8.878e-05,2]
[347542147,1735911362884,-500.0,8.878e-05,2]
[347542148,1735911362904,-500.0,8.878e-05,2]
[347542149,1735911362924,-500.0,8.878e-05,2]
[347542150,1735911362945,-578.8,8.878e-05,2]
[347542151,1735911362964,-500.0,8.878e-05,2]
[347542152,1735911362984,-500.0,8.878e-05,2]
[347542153,1735911363005,-893.83,8.878e-05,2]
[347542154,1735911363025,-500.0,8.878e-05,2]
[347542155,1735911363046,-500.0,8.878e-05,2]
[347542156,1735911363066,-500.0,8.878e-05,2]
[347542157,1735911363088,-4328.13,8.878e-05,2]
[347542158,1735911363108,-500.0,8.878e-05,2]
[347542159,1735911363131,-500.0,8.878e-05,2]
[347542160,1735911363153,-500.0,8.878e-05,2]
[347542161,1735911363174,-580.75,8.878e-05,2]
[347542162,1735911363197,-500.0,8.878e-05,2]
[347542163,1735911363218,-890.74,8.878e-05,2]
[347542164,1735911363240,-3195.83,8.878e-05,2]
[347542165,1735911363262,-417.51816478,8.878e-05,2]
[347542166,1735911363285,-819.04,8.878e-05,2]
[347542167,1735911363307,-500.0,8.878e-05,2]
[347542168,1735911363330,-500.0,8.878e-05,2]
[347542169,1735911363352,-500.0,8.878e-05,2]
[347542170,1735911363376,-500.0,8.878e-05,2]
[347542171,1735911363398,-500.0,8.878e-05,2]
[347542172,1735911363421,-500.0,8.878e-05,2]
[347542173,1735911363442,-500.0,8.878e-05,2]
[347542174,1735911363465,-500.0,8.878e-05,2]
[347542175,1735911363487,-500.0,8.878e-05,2]
[347542176,1735911363509,-500.0,8.878e-05,2]
[347542177,1735911363530,-500.0,8.878e-05,2]
[347542178,1735911363551,-500.0,8.878e-05,2]
[347542179,1735911363571,-500.0,8.878e-05,2]
[347542180,1735911363592,-500.0,8.878e-05,2]
[347542181,1735911363613,-500.2156222,8.878e-05,2]
[347542182,1735911363638,-500.0,8.878e-05,2]
[347542183,1735911363659,-874.95,8.878e-05,2]
[347542184,1735911363680,-594.32120065,8.878e-05,2]
[347542185,1735911363702,-713.64,8.878e-05,2]
[347542186,1735911363723,-727.12,8.878e-05,2]
[347542187,1735911363743,-500.0,8.878e-05,2]
[347542188,1735911363765,-500.0,8.878e-05,2]
[347542189,1735911363786,-500.0,8.878e-05,2]
[347542190,1735911363807,-500.0,8.878e-05,2]
[347542191,1735911363832,-513.57,8.878e-05,2]
[347542192,1735911363853,-500.0,8.878e-05,2]
[347542193,1735911363877,-653.21,8.878e-05,2]
[347542194,1735911363899,-500.0,8.878e-05,2]
[347542195,1735911363920,-500.0,8.878e-05,2]
[347542196,1735911363942,-500.0,8.878e-05,2]
[347542197,1735911363964,-592.41,8.878e-05,2]
[347542198,1735911363985,-500.0,8.878e-05,2]
[347542199,1735911364006,-417.95168914,8.878e-05,2]
[347542200,1735911364027,-719.05,8.878e-05,2]
[347542201,1735911364048,-598.15,8.878e-05,2]
[347542202,1735911364069,-561.09,8.878e-05,2]
[347542203,1735911364091,-1274.53,8.878e-05,2]
[347542204,1735911364111,-500.0,8.878e-05,2]
[347542205,1735911364136,-500.0,8.878e-05,2]
[347542206,1735911364159,-3581.74,8.878e-05,2]
[347542207,1735911364179,-500.0,8.878e-05,2]
[347542208,1735911364201,-500.0,8.878e-05,2]
[347542209,1735911364224,-510.05,8.878e-05,2]
[347542210,1735911364246,-500.0,8.878e-05,2]
[347542211,1735911364268,-500.0,8.878e-05,2]
[347542212,1735911364290,-2813.183256,8.878e-05,2]
[347542213,1735911364312,-500.0,8.878e-05,2]
[347542214,1735911364334,-980.19,8.878e-05,2]
[347542215,1735911364356,-500.0,8.878e-05,2]
[347542216,1735911364380,-500.0,8.878e-05,2]
[347542217,1735911364403,-153.671496,8.878e-05,2]
[347542218,1735911364425,-500.0,8.878e-05,2]
[347542219,1735911364453,-155.826196,8.878e-05,2]
[347542220,1735911364478,-772.4,8.878e-05,2]
[347542221,1735911364502,-666.39,8.878e-05,2]
[347542222,1735911364526,-500.0,8.878e-05,2]
[347542223,1735911364549,-500.0,8.878e-05,2]
[347542224,1735911364570,-500.0,8.878e-05,2]
[347542225,1735911364592,-500.0,8.878e-05,2]
[347542226,1735911364615,-500.0,8.878e-05,2]
[347542227,1735911364644,-500.0,8.878e-05,2]
[347542228,1735911364665,-500.0,8.878e-05,2]
[347542229,1735911364686,-500.0,8.878e-05,2]
[347542230,1735911364711,-500.0,8.878e-05,2]
[347542231,1735911364732,-500.0,8.878e-05,2]
[347542232,1735911364753,-500.0,8.878e-05,2]
[347542233,1735911364775,-500.0,8.878e-05,2]
[347542234,1735911364798,-4022.06,8.878e-05,2]
[347542235,1735911364819,-3290.363783,8.878e-05,2]
[347542236,1735911364840,-2609.15,8.878e-05,2]
[347542237,1735911364862,-500.0,8.878e-05,2]
[347542238,1735911364884,-500.0,8.878e-05,2]
[347542239,1735911364906,-500.0,8.878e-05,2]
[347542240,1735911364927,-500.0,8.878e-05,2]
[347542241,1735911364947,-500.0,8.878e-05,2]
[347542242,1735911364968,-1858.38,8.878e-05,2]
[347542243,1735911364989,-9423.5452,8.878e-05,2]
[347542244,1735911365011,-3165.7777,8.878e-05,2]
[347542245,1735911365032,-37045.4753,8.878e-05,2]
[347542246,1735911365054,-500.0,8.879e-05,2]
[347542247,1735911365076,-4781.4731,8.879e-05,2]
[347542248,1735911365098,-4949.75,8.88e-05,2]
[347542249,1735911365120,-69300.7016,8.88e-05,2]
[347542250,1735911365142,-595.22,8.978e-05,2]
[347542251,1735911365163,-2319.6,8.978e-05,2]
[347542252,1735911365185,-5182.82,8.978e-05,2]
[347542253,1735911365206,-2533.75,8.978e-05,2]
[347542254,1735911365227,-500.0,8.978e-05,2]
[347542255,1735911365248,-990.12,8.978e-05,2]
[347542256,1735911365270,-2237.9,8.978e-05,2]
[347542257,1735911365290,-902.06,8.978e-05,2]
[347542258,1735911365312,-514.41,8.978e-05,2]
[347542259,1735911365334,-500.0,8.978e-05,2]
[347542260,1735911365356,-517.22,8.978e-05,2]
[347542261,1735911365380,-1141.87,8.978e-05,2]
[347542262,1735911365401,-500.0,8.978e-05,2]
[347542263,1735911365422,-705.0,8.978e-05,2]
[347542264,1735911365443,-781.64,8.978e-05,2]
[347542265,1735911365465,-500.0,8.978e-05,2]
[347542266,1735911365487,-4742.23,8.978e-05,2]
[347542267,1735911365510,-3458.67,8.978e-05,2]
[347542268,1735911365725,-500.0,8.978e-05,2]
[347542269,1735911365754,-3169.26,8.978e-05,2]
[347542270,1735911365776,-1341.47,8.978e-05,2]
[347542271,1735911365797,-500.0,8.978e-05,2]
[347542272,1735911365818,-500.0,8.978e-05,2]
[347542273,1735911365840,-500.0,8.978e-05,2]
[347542274,1735911365862,-664.94,8.978e-05,2]
[347542275,1735911365886,-500.0,8.978e-05,2]
[347542276,1735911365906,-500.0,8.978e-05,2]
[347542277,1735911365926,-2106.77,8.978e-05,2]
[347542278,1735911365948,-500.0,8.978e-05,2]
[347542279,1735911365971,-500.0,8.978e-05,2]
[347542280,1735911365991,-949.74,8.978e-05,2]
[347542281,1735911366013,-1916.46,8.978e-05,2]
[347542282,1735911366036,-500.0,8.978e-05,2]
[347542283,1735911366057,-832.54,8.978e-05,2]
[347542284,1735911366079,-1707.5,8.978e-05,2]
[347542285,1735911366100,-5612.0,8.978e-05,2]
[347542286,1735911366124,-1830.99,8.978e-05,2]
[347542287,1735911366144,-1445.41,8.978e-05,2]
[347542288,1735911366166,-2163.21,8.978e-05,2]
[347542289,1735911366188,-500.0,8.978e-05,2]
[347542290,1735911366209,-500.0,8.978e-05,2]
[347542291,1735911366230,-3186.84,8.978e-05,2]
[347542292,1735911366251,-547.8,8.978e-05,2]
[347542293,1735911366273,-500.0,8.978e-05,2]
[347542294,1735911366296,-789.2,8.978e-05,2]
[347542295,1735911366318,-500.0,8.978e-05,2]
[347542296,1735911366340,-500.0,8.978e-05,2]
[347542297,1735911366360,-564.23,8.978e-05,2]
[347542298,1735911366383,-500.0,8.978e-05,2]
[347542299,1735911366405,-1603.94,8.978e-05,2]
[347542300,1735911366427,-4217.85,8.978e-05,2]
[347542301,1735911366450,-544.24,8.978e-05,2]
[347542302,1735911366472,-1110.43,8.978e-05,2]
[347542303,1735911366494,-549.41,8.978e-05,2]
[347542304,1735911366516,-1563.25,8.978e-05,2]
[347542305,1735911366537,-188.7925339,8.979e-05,2]
[347542306,1735911366558,-500.0,8.979e-05,2]
[347542307,1735911366579,-500.0,8.979e-05,2]
[347542308,1735911366600,-517.03,8.979e-05,2]
[347542309,1735911366629,-500.0,8.979e-05,2]
[347542310,1735911366652,-500.0,8.979e-05,2]
[347542311,1735911366673,-500.0,8.979e-05,2]
[347542312,1735911366694,-500.0,8.979e-05,2]
[347542313,1735911366717,-577.37,8.979e-05,2]
[347542314,1735911366740,-500.0,8.979e-05,2]
[347542315,1735911366761,-500.0,8.979e-05,2]
[347542316,1735911366783,-500.0,8.979e-05,2]
[347542317,1735911366806,-500.68,8.979e-05,2]
[347542318,1735911366830,-500.0,8.979e-05,2]
[347542319,1735911366852,-500.0,8.979e-05,2]
[347542320,1735911366875,-500.0,8.979e-05,2]
[347542321,1735911366897,-500.0,8.979e-05,2]
[347542322,1735911366918,-500.0,8.979e-05,2]
[347542323,1735911366940,-500.0,8.979e-05,2]
[347542324,1735911366961,-500.0,8.979e-05,2]
[347542325,1735911366982,-500.0,8.979e-05,2]
[347542326,1735911367003,-634.23,8.979e-05,2]
[347542327,1735911367025,-500.0,8.979e-05,2]
[347542328,1735911367046,-500.0,8.979e-05,2]
[347542329,1735911367068,-500.0,8.979e-05,2]
[347542330,1735911367090,-500.0,8.979e-05,2]
[347542331,1735911367111,-500.0,8.979e-05,2]
[347542332,1735911367135,-500.0,8.979e-05,2]
[347542333,1735911367159,-500.0,8.979e-05,2]
[347542334,1735911367181,-500.0,8.979e-05,2]
[347542335,1735911367204,-500.0,8.979e-05,2]
[347542336,1735911367226,-500.0,8.979e-05,2]
[347542337,1735911367248,-500.0,8.979e-05,2]
[347542338,1735911367270,-500.0,8.979e-05,2]
[347542339,1735911367293,-500.0,8.979e-05,2]
[347542340,1735911367315,-500.0,8.979e-05,2]
[347542341,1735911367338,-500.0,8.979e-05,2]
[347542342,1735911367360,-500.0,8.979e-05,2]
[347542343,1735911367384,-500.0,8.979e-05,2]
[347542344,1735911367407,-500.0,8.979e-05,2]
[347542345,1735911367429,-500.0,8.979e-05,2]
[347542346,1735911367453,-500.0,8.979e-05,2]
[347542347,1735911367476,-667.31,8.979e-05,2]
[347542348,1735911367498,-500.0,8.979e-05,2]
[347542349,1735911367521,-500.0,8.979e-05,7]
[347542350,1735911367545,-500.0,8.979e-05,2]
[347542351,1735911367568,-500.0,8.979e-05,2]
[347542352,1735911367591,-500.0,8.979e-05,2]
[347542353,1735911367613,-500.0,8.979e-05,2]
[347542354,1735911367641,-575.94,8.979e-05,2]
[347542355,1735911367663,-500.0,8.979e-05,2]
[347542356,1735911367686,-500.0,8.979e-05,2]
[347542357,1735911367711,-500.0,8.979e-05,2]
[347542358,1735911367733,-500.0,8.979e-05,2]
[347542359,1735911367755,-500.0,8.979e-05,2]
[347542360,1735911367777,-500.0,8.979e-05,2]
[347542361,1735911367800,-500.0,8.979e-05,2]
[347542362,1735911367822,-500.0,8.979e-05,2]
[347542363,1735911367844,-821.7,8.979e-05,2]
[347542364,1735911367866,-782.31,8.979e-05,2]
[347542365,1735911367891,-500.0,8.979e-05,2]
[347542366,1735911367912,-500.0,8.979e-05,2]
[347542367,1735911367934,-500.0,8.979e-05,2]
[347542368,1735911367957,-500.0,8.979e-05,2]
[347542369,1735911367979,-500.0,8.979e-05,2]
[347542370,1735911368002,-500.0,8.979e-05,2]
[347542371,1735911368024,-500.0,8.979e-05,2]